[Event "The Elitserien 2024/25: round 1 - 3"]
[Site "Scandic Infra City, Kanalvagen 10, Upplands Vasby, Sweden"]
[Date "2024.10.05"]
[Round "2.26"]
[White "Holm, Kristian Stuvik"]
[Black "Amin, Bassem"]
[Result "0-1"]
[TimeControl "90 minutes for 40 moves + 30 minutes for the rest of the game + 30 seconds per move from move one."]
[WhiteTitle "IM"]
[BlackTitle "GM"]
[WhiteFideId "1508083"]
[BlackFideId "10601457"]
[WhiteElo "2480"]
[BlackElo "2636"]

1. e4 {[%clk 01:21:11]} {[%emt 00:09:49]} e5 {[%clk 01:29:35]} {[%emt
00:01:23]} 2. Nf3 {[%clk 01:20:32]} {[%emt 00:01:10]} Nc6 {[%clk 01:29:57]}
{[%emt 00:00:07]} 3. Nc3 {[%clk 01:20:22]} {[%emt 00:00:41]} Nf6 {[%clk
01:28:18]} {[%emt 00:02:10]} 4. d4 {[%clk 01:19:54]} {[%emt 00:00:57]} exd4
{[%clk 01:24:52]} {[%emt 00:03:56]} 5. Nxd4 {[%clk 01:19:33]} {[%emt 00:00:51]}
Bb4 {[%clk 01:23:21]} {[%emt 00:02:02]} 6. Nxc6 {[%clk 01:19:45]} {[%emt
00:00:18]} bxc6 {[%clk 01:23:46]} {[%emt 00:00:05]} 7. Bd3 {[%clk 01:20:04]}
{[%emt 00:00:10]} d5 {[%clk 01:24:04]} {[%emt 00:00:14]} 8. exd5 {[%clk
01:19:46]} {[%emt 00:00:48]} O-O {[%clk 01:24:17]} {[%emt 00:00:16]} 9. O-O
{[%clk 01:20:02]} {[%emt 00:00:13]} cxd5 {[%clk 01:24:43]} {[%emt 00:00:05]} 10.
Bg5 {[%clk 01:20:19]} {[%emt 00:00:13]} c6 {[%clk 01:20:49]} {[%emt 00:04:23]}
11. Qf3 {[%clk 01:18:56]} {[%emt 00:01:53]} h6 {[%clk 01:05:02]} {[%emt
00:16:18]} 12. Bxf6 {[%clk 01:19:18]} {[%emt 00:00:08]} Qxf6 {[%clk 01:05:26]}
{[%emt 00:00:06]} 13. Qxf6 {[%clk 01:19:38]} {[%emt 00:00:09]} gxf6 {[%clk
01:05:50]} {[%emt 00:00:05]} 14. Ne2 {[%clk 01:19:58]} {[%emt 00:00:11]} Rb8
{[%clk 01:02:38]} {[%emt 00:03:42]} 15. b3 {[%clk 01:16:23]} {[%emt 00:04:05]}
Re8 {[%clk 01:00:42]} {[%emt 00:02:26]} 16. Rad1 {[%clk 00:47:05]} {[%emt
00:29:47]} Bg4 {[%clk 00:54:27]} {[%emt 00:06:45]} 17. f3 {[%clk 00:46:16]}
{[%emt 00:01:21]} Bd7 {[%clk 00:54:41]} {[%emt 00:00:15]} 18. c4 {[%clk
00:33:15]} {[%emt 00:13:31]} Re5 {[%clk 00:53:56]} {[%emt 00:01:15]} 19. Kh1
{[%clk 00:26:33]} {[%emt 00:07:12]} a5 {[%clk 00:48:20]} {[%emt 00:06:06]} 20.
Nf4 {[%clk 00:23:02]} {[%emt 00:03:59]} d4 {[%clk 00:45:39]} {[%emt 00:03:13]}
21. Be4 {[%clk 00:21:56]} {[%emt 00:01:36]} c5 {[%clk 00:45:57]} {[%emt
00:00:12]} 22. Nd3 {[%clk 00:19:32]} {[%emt 00:02:53]} Re7 {[%clk 00:44:35]}
{[%emt 00:01:52]} 23. Nf4 {[%clk 00:11:35]} {[%emt 00:08:29]} Re5 {[%clk
00:32:30]} {[%emt 00:12:35]} 24. Nd3 {[%clk 00:11:49]} {[%emt 00:00:16]} Ree8
{[%clk 00:32:53]} {[%emt 00:00:06]} 25. Nxb4 {[%clk 00:10:29]} {[%emt
00:01:51]} axb4 {[%clk 00:27:52]} {[%emt 00:05:31]} 26. Rfe1 {[%clk 00:10:22]}
{[%emt 00:00:37]} f5 {[%clk 00:23:36]} {[%emt 00:04:45]} 27. Bd3 {[%clk
00:07:58]} {[%emt 00:02:55]} Ra8 {[%clk 00:21:00]} {[%emt 00:03:06]} 28. Bb1
{[%clk 00:06:14]} {[%emt 00:02:14]} f4 {[%clk 00:15:25]} {[%emt 00:06:04]} 29.
Rxe8+ {[%clk 00:06:39]} {[%emt 00:00:06]} Rxe8 {[%clk 00:15:53]} 30. Be4 {[%clk
00:07:02]} {[%emt 00:00:07]} Kg7 {[%clk 00:15:44]} {[%emt 00:00:39]} 31. Kg1
{[%clk 00:06:41]} {[%emt 00:00:49]} Kf6 {[%clk 00:13:58]} {[%emt 00:02:18]} 32.
Kf2 {[%clk 00:01:24]} {[%emt 00:05:47]} Bf5 {[%clk 00:14:20]} {[%emt 00:00:08]}
33. Bxf5 {[%clk 00:01:23]} {[%emt 00:00:30]} Kxf5 {[%clk 00:14:49]} {[%emt
00:00:02]} 34. g4+ {[%clk 00:01:32]} {[%emt 00:00:20]} Kf6 {[%clk 00:09:35]}
{[%emt 00:05:44]} 35. h4 {[%clk 00:01:39]} {[%emt 00:00:22]} Re3 {[%clk
00:10:00]} {[%emt 00:00:06]} 36. Re1 {[%clk 00:00:54]} {[%emt 00:01:14]} Rxe1
{[%clk 00:07:25]} {[%emt 00:03:05]} 37. Kxe1 {[%clk 00:01:23]} {[%emt
00:00:02]} Ke5 {[%clk 00:07:34]} {[%emt 00:00:20]} 38. Kd2 {[%clk 00:01:49]}
{[%emt 00:00:04]} f5 {[%clk 00:07:29]} {[%emt 00:00:36]} 39. g5 {[%clk
00:01:30]} {[%emt 00:00:49]} hxg5 {[%clk 00:07:45]} {[%emt 00:00:14]} 40. hxg5
{[%clk 00:01:58]} {[%emt 00:00:02]} Ke6 {[%clk 00:08:08]} {[%emt 00:00:07]} 41.
Kc2 {[%clk 00:02:24]} {[%emt 00:00:04]} Kf7 {[%clk 00:08:03]} {[%emt 00:00:36]}
42. Kb2 {[%clk 00:01:30]} {[%emt 00:01:23]} Kg6 {[%clk 00:29:54]} {[%emt
00:08:39]} 43. a4 {[%clk 00:31:38]} {[%emt 00:00:22]} bxa3+ {[%clk 00:30:18]}
{[%emt 00:00:06]} 44. Kxa3 {[%clk 00:32:00]} {[%emt 00:00:08]} Kxg5 {[%clk
00:30:41]} {[%emt 00:00:09]} 45. Kb2 {[%clk 00:30:46]} {[%emt 00:01:43]} Kf6
{[%clk 00:30:59]} {[%emt 00:00:12]} 46. Kc2 {[%clk 00:26:55]} {[%emt 00:04:21]}
Ke6 {[%clk 00:31:22]} {[%emt 00:00:06]} 47. Kd3 {[%clk 00:27:19]} {[%emt
00:00:06]} Kd6 {[%clk 00:31:31]} 0-1

[Event "The Elitserien 2024/25: round 1 - 3"]
[Site "Scandic Infra City, Kanalvagen 10, Upplands Vasby, Sweden"]
[Date "2024.10.05"]
[Round "2.27"]
[White "Cramling, Pia"]
[Black "Pantzar, Milton"]
[Result "0-1"]
[TimeControl "90 minutes for 40 moves + 30 minutes for the rest of the game + 30 seconds per move from move one."]
[WhiteTitle "GM"]
[BlackTitle "IM"]
[WhiteFideId "1700030"]
[BlackFideId "1721003"]
[WhiteElo "2425"]
[BlackElo "2437"]

1. d4 {[%clk 01:24:24]} {[%emt 00:06:35]} d5 {[%clk 01:30:42]} {[%emt
00:00:20]} 2. c4 {[%clk 01:23:57]} {[%emt 00:00:56]} e6 {[%clk 01:30:48]}
{[%emt 00:00:24]} 3. Nf3 {[%clk 01:24:13]} {[%emt 00:00:14]} Nf6 {[%clk
01:30:54]} {[%emt 00:00:24]} 4. Nc3 {[%clk 01:24:03]} {[%emt 00:00:42]} c6
{[%clk 01:30:09]} {[%emt 00:01:15]} 5. Bg5 {[%clk 01:20:43]} {[%emt 00:03:49]}
Nbd7 {[%clk 01:28:57]} {[%emt 00:01:41]} 6. e3 {[%clk 01:19:46]} {[%emt
00:01:26]} Be7 {[%clk 01:28:32]} {[%emt 00:00:57]} 7. Qc2 {[%clk 01:17:12]}
{[%emt 00:03:04]} O-O {[%clk 01:26:01]} {[%emt 00:03:00]} 8. Rd1 {[%clk
01:15:22]} {[%emt 00:02:20]} h6 {[%clk 01:21:58]} {[%emt 00:04:33]} 9. Bh4
{[%clk 01:15:38]} {[%emt 00:00:13]} a6 {[%clk 01:22:08]} {[%emt 00:00:22]} 10.
a3 {[%clk 01:11:25]} {[%emt 00:04:43]} b6 {[%clk 01:19:14]} {[%emt 00:03:24]}
11. Bd3 {[%clk 01:05:04]} {[%emt 00:06:51]} Bb7 {[%clk 01:14:42]} {[%emt
00:05:04]} 12. O-O {[%clk 01:04:55]} {[%emt 00:00:37]} c5 {[%clk 01:02:08]}
{[%emt 00:13:05]} 13. cxd5 {[%clk 00:47:57]} {[%emt 00:17:27]} Nxd5 {[%clk
01:00:53]} {[%emt 00:01:45]} 14. Bxe7 {[%clk 00:47:27]} {[%emt 00:01:00]} Qxe7
{[%clk 01:01:00]} {[%emt 00:00:23]} 15. Nxd5 {[%clk 00:45:16]} {[%emt
00:02:41]} Bxd5 {[%clk 01:00:12]} {[%emt 00:01:19]} 16. e4 {[%clk 00:43:22]}
{[%emt 00:02:24]} Bb7 {[%clk 00:59:33]} {[%emt 00:01:09]} 17. d5 {[%clk
00:43:05]} {[%emt 00:00:46]} b5 {[%clk 00:50:56]} {[%emt 00:09:09]} 18. d6
{[%clk 00:40:29]} {[%emt 00:03:04]} Qf6 {[%clk 00:48:01]} {[%emt 00:03:25]} 19.
Rfe1 {[%clk 00:39:31]} {[%emt 00:01:28]} e5 {[%clk 00:42:47]} {[%emt 00:05:45]}
20. Qc3 {[%clk 00:39:05]} {[%emt 00:00:56]} Rac8 {[%clk 00:35:06]} {[%emt
00:08:11]} 21. a4 {[%clk 00:35:08]} {[%emt 00:04:26]} b4 {[%clk 00:21:21]}
{[%emt 00:14:16]} 22. Qb3 {[%clk 00:34:35]} {[%emt 00:00:59]} Rc6 {[%clk
00:21:15]} {[%emt 00:00:40]} 23. Bc4 {[%clk 00:22:07]} {[%emt 00:12:58]} Rxd6
{[%clk 00:21:27]} {[%emt 00:00:18]} 24. Rxd6 {[%clk 00:21:59]} {[%emt
00:00:38]} Qxd6 {[%clk 00:21:53]} {[%emt 00:00:05]} 25. Rd1 {[%clk 00:18:43]}
{[%emt 00:03:46]} Qc7 {[%clk 00:15:55]} {[%emt 00:06:28]} 26. Qd3 {[%clk
00:18:24]} {[%emt 00:00:49]} Nb6 {[%clk 00:12:17]} {[%emt 00:04:08]} 27. Bxa6
{[%clk 00:17:29]} {[%emt 00:01:24]} c4 {[%clk 00:10:35]} {[%emt 00:02:13]} 28.
Qd2 {[%clk 00:12:30]} {[%emt 00:05:29]} Bxa6 {[%clk 00:08:51]} {[%emt
00:02:15]} 29. Qxb4 {[%clk 00:12:47]} {[%emt 00:00:13]} Nc8 {[%clk 00:05:55]}
{[%emt 00:03:26]} 30. h3 {[%clk 00:12:23]} {[%emt 00:00:52]} Re8 {[%clk
00:03:40]} {[%emt 00:02:46]} 31. Rd5 {[%clk 00:11:09]} {[%emt 00:01:44]} Qb6
{[%clk 00:02:25]} {[%emt 00:01:47]} 32. Qxb6 {[%clk 00:08:10]} {[%emt
00:03:28]} Nxb6 {[%clk 00:02:53]} {[%emt 00:00:03]} 33. Ra5 {[%clk 00:08:11]}
{[%emt 00:00:28]} Bc8 {[%clk 00:02:58]} {[%emt 00:00:25]} 34. Nxe5 {[%clk
00:07:45]} {[%emt 00:00:56]} f6 {[%clk 00:02:26]} {[%emt 00:01:02]} 35. Nf3
{[%clk 00:04:02]} {[%emt 00:04:13]} Rxe4 {[%clk 00:02:36]} {[%emt 00:00:21]} 36.
Rc5 {[%clk 00:03:47]} {[%emt 00:00:43]} c3 {[%clk 00:00:45]} {[%emt 00:02:22]}
37. bxc3 {[%clk 00:02:19]} {[%emt 00:01:58]} Rxa4 {[%clk 00:01:04]} {[%emt
00:00:11]} 38. Rc6 {[%clk 00:02:16]} {[%emt 00:00:33]} Ra1+ {[%clk 00:01:07]}
{[%emt 00:00:26]} 39. Kh2 {[%clk 00:02:42]} {[%emt 00:00:04]} Ra6 {[%clk
00:00:38]} {[%emt 00:01:01]} 40. Nd4 {[%clk 00:02:02]} {[%emt 00:01:09]} Bd7
{[%clk 00:00:46]} {[%emt 00:00:21]} 41. Rc7 {[%clk 00:18:09]} {[%emt 00:14:22]}
Kf8 {[%clk 00:26:01]} {[%emt 00:05:16]} 42. c4 {[%clk 00:16:05]} {[%emt
00:02:34]} Ra4 {[%clk 00:23:49]} {[%emt 00:02:42]} 43. c5 {[%clk 00:10:59]}
{[%emt 00:05:36]} Rxd4 {[%clk 00:23:14]} {[%emt 00:01:06]} 44. cxb6 {[%clk
00:11:23]} {[%emt 00:00:06]} Ke7 {[%clk 00:23:08]} {[%emt 00:00:35]} 45. Ra7
{[%clk 00:11:45]} {[%emt 00:00:07]} Rb4 {[%clk 00:22:14]} {[%emt 00:01:25]} 46.
b7 {[%clk 00:12:08]} {[%emt 00:00:07]} Kd6 {[%clk 00:20:20]} {[%emt 00:02:23]}
0-1

[Event "The Elitserien 2024/25: round 1 - 3"]
[Site "Scandic Infra City, Kanalvagen 10, Upplands Vasby, Sweden"]
[Date "2024.10.05"]
[Round "2.28"]
[White "Storme, Isak"]
[Black "Grigorov, Grigor"]
[Result "1/2-1/2"]
[TimeControl "90 minutes for 40 moves + 30 minutes for the rest of the game + 30 seconds per move from move one."]
[WhiteTitle "IM"]
[BlackTitle "GM"]
[WhiteFideId "1728113"]
[BlackFideId "2907313"]
[WhiteElo "2447"]
[BlackElo "2514"]

1. d4 {[%clk 01:30:49]} {[%emt 00:00:09]} Nf6 {[%clk 01:30:45]} {[%emt
00:00:18]} 2. Bg5 {[%clk 01:30:44]} {[%emt 00:00:35]} d5 {[%clk 01:31:00]}
{[%emt 00:00:14]} 3. Nd2 {[%clk 01:30:31]} {[%emt 00:00:43]} Nbd7 {[%clk
01:29:39]} {[%emt 00:01:51]} 4. e3 {[%clk 01:28:17]} {[%emt 00:02:44]} e5
{[%clk 01:25:58]} {[%emt 00:04:11]} 5. dxe5 {[%clk 01:22:12]} {[%emt 00:06:35]}
Nxe5 {[%clk 01:25:34]} {[%emt 00:00:54]} 6. Ngf3 {[%clk 01:22:17]} {[%emt
00:00:26]} Nxf3+ {[%clk 01:16:13]} {[%emt 00:09:51]} 7. Nxf3 {[%clk 01:21:08]}
{[%emt 00:01:37]} Be7 {[%clk 01:16:30]} {[%emt 00:00:15]} 8. Be2 {[%clk
01:19:27]} {[%emt 00:02:11]} O-O {[%clk 01:16:34]} {[%emt 00:00:25]} 9. O-O
{[%clk 01:19:48]} {[%emt 00:00:09]} c6 {[%clk 01:13:18]} {[%emt 00:03:47]} 10.
c4 {[%clk 01:17:48]} {[%emt 00:02:29]} Bg4 {[%clk 01:05:59]} {[%emt 00:07:49]}
11. h3 {[%clk 01:12:08]} {[%emt 00:06:11]} Bxf3 {[%clk 01:04:14]} {[%emt
00:02:15]} 12. Bxf3 {[%clk 01:11:46]} {[%emt 00:00:52]} dxc4 {[%clk 01:04:34]}
{[%emt 00:00:10]} 13. Qc2 {[%clk 01:07:38]} {[%emt 00:04:38]} Nd7 {[%clk
00:55:44]} {[%emt 00:09:19]} 14. Bf4 {[%clk 01:05:04]} {[%emt 00:03:06]} Qa5
{[%clk 00:51:25]} {[%emt 00:04:48]} 15. Qxc4 {[%clk 01:02:41]} {[%emt
00:02:54]} Ne5 {[%clk 00:51:36]} {[%emt 00:00:18]} 1/2-1/2

[Event "The Elitserien 2024/25: round 1 - 3"]
[Site "Scandic Infra City, Kanalvagen 10, Upplands Vasby, Sweden"]
[Date "2024.10.05"]
[Round "2.29"]
[White "Cramling, Dan"]
[Black "Kucuksari, Kaan"]
[Result "1/2-1/2"]
[TimeControl "90 minutes for 40 moves + 30 minutes for the rest of the game + 30 seconds per move from move one."]
[WhiteTitle "IM"]
[BlackTitle "IM"]
[WhiteFideId "1700162"]
[BlackFideId "6380166"]
[WhiteElo "2317"]
[BlackElo "2455"]

1. d4 {[%clk 01:28:35]} {[%emt 00:02:24]} Nf6 {[%clk 01:30:56]} {[%emt
00:00:05]} 2. c4 {[%clk 01:28:56]} {[%emt 00:00:08]} e6 {[%clk 01:31:21]}
{[%emt 00:00:05]} 3. Nc3 {[%clk 01:29:11]} {[%emt 00:00:14]} Bb4 {[%clk
01:31:46]} {[%emt 00:00:07]} 4. e3 {[%clk 01:29:28]} {[%emt 00:00:12]} O-O
{[%clk 01:32:09]} {[%emt 00:00:08]} 5. Bd3 {[%clk 01:29:23]} {[%emt 00:00:35]}
d5 {[%clk 01:32:28]} {[%emt 00:00:11]} 6. Nf3 {[%clk 01:28:18]} {[%emt
00:01:34]} dxc4 {[%clk 01:30:37]} {[%emt 00:02:23]} 7. Bxc4 {[%clk 01:28:38]}
{[%emt 00:00:10]} c5 {[%clk 01:31:04]} {[%emt 00:00:03]} 8. a3 {[%clk
01:28:12]} {[%emt 00:00:56]} Bxc3+ {[%clk 01:30:58]} {[%emt 00:00:37]} 9. bxc3
{[%clk 01:28:32]} {[%emt 00:00:07]} Qc7 {[%clk 01:31:26]} {[%emt 00:00:03]} 10.
Be2 {[%clk 01:19:02]} {[%emt 00:09:59]} b6 {[%clk 01:31:43]} {[%emt 00:00:15]}
11. O-O {[%clk 01:18:38]} {[%emt 00:00:53]} Ba6 {[%clk 01:32:11]} {[%emt
00:00:02]} 12. Bxa6 {[%clk 01:16:28]} {[%emt 00:02:40]} Nxa6 {[%clk 01:32:00]}
{[%emt 00:00:41]} 13. Qe2 {[%clk 01:16:39]} {[%emt 00:00:18]} Nb8 {[%clk
01:30:50]} {[%emt 00:01:41]} 14. e4 {[%clk 01:13:07]} {[%emt 00:04:01]} cxd4
{[%clk 01:31:04]} {[%emt 00:00:16]} 15. cxd4 {[%clk 01:13:19]} {[%emt
00:00:18]} Nbd7 {[%clk 01:31:29]} {[%emt 00:00:05]} 16. Bb2 {[%clk 01:05:59]}
{[%emt 00:07:51]} Rac8 {[%clk 01:30:19]} {[%emt 00:01:41]} 17. Rac1 {[%clk
01:02:57]} {[%emt 00:03:31]} Qb7 {[%clk 01:30:45]} {[%emt 00:00:05]} 18. Nd2
{[%clk 01:02:58]} {[%emt 00:00:27]} h6 {[%clk 01:29:33]} {[%emt 00:01:43]} 19.
a4 {[%clk 00:57:01]} {[%emt 00:06:26]} Rc6 {[%clk 01:29:02]} {[%emt 00:01:03]}
20. f3 {[%clk 00:53:26]} {[%emt 00:04:04]} Rfc8 {[%clk 01:29:05]} {[%emt
00:00:28]} 21. Rxc6 {[%clk 00:52:24]} {[%emt 00:01:31]} Rxc6 {[%clk 01:29:19]}
{[%emt 00:00:16]} 22. Rc1 {[%clk 00:52:24]} {[%emt 00:00:30]} Rxc1+ {[%clk
01:28:38]} {[%emt 00:01:10]} 23. Bxc1 {[%clk 00:52:46]} {[%emt 00:00:07]} a6
{[%clk 01:28:56]} {[%emt 00:00:13]} 24. Nc4 {[%clk 00:41:30]} {[%emt 00:11:45]}
b5 {[%clk 01:17:27]} {[%emt 00:12:00]} 25. axb5 {[%clk 00:41:33]} {[%emt
00:00:27]} Qxb5 {[%clk 01:17:48]} {[%emt 00:00:09]} 26. Qa2 {[%clk 00:34:26]}
{[%emt 00:07:36]} Nb6 {[%clk 01:17:38]} {[%emt 00:00:40]} 27. Nxb6 {[%clk
00:31:01]} {[%emt 00:03:55]} Qxb6 {[%clk 01:18:06]} {[%emt 00:00:02]} 28. Qb2
{[%clk 00:30:25]} {[%emt 00:01:05]} Qc6 {[%clk 01:06:39]} {[%emt 00:11:58]} 29.
Bd2 {[%clk 00:30:02]} {[%emt 00:00:53]} Ne8 {[%clk 00:56:18]} {[%emt 00:10:51]}
30. Qc3 {[%clk 00:27:11]} {[%emt 00:03:21]} Qd7 {[%clk 00:39:08]} {[%emt
00:17:39]} 31. Qc5 {[%clk 00:25:37]} {[%emt 00:02:03]} Nc7 {[%clk 00:36:05]}
{[%emt 00:03:34]} 32. Ba5 {[%clk 00:21:10]} {[%emt 00:04:57]} Nb5 {[%clk
00:36:26]} {[%emt 00:00:08]} 33. Bb6 {[%clk 00:20:29]} {[%emt 00:01:11]} f6
{[%clk 00:28:08]} {[%emt 00:08:49]} 34. Kf2 {[%clk 00:20:06]} {[%emt 00:00:54]}
Kf7 {[%clk 00:28:18]} {[%emt 00:00:20]} 35. Ke3 {[%clk 00:19:44]} {[%emt
00:00:51]} Nd6 {[%clk 00:26:45]} {[%emt 00:02:03]} 36. Kd3 {[%clk 00:15:27]}
{[%emt 00:04:48]} Nc8 {[%clk 00:18:07]} {[%emt 00:09:08]} 37. Kc3 {[%clk
00:11:12]} {[%emt 00:04:45]} Nxb6 {[%clk 00:09:36]} {[%emt 00:09:02]} 38. Qxb6
{[%clk 00:11:29]} {[%emt 00:00:12]} Qa4 {[%clk 00:09:50]} {[%emt 00:00:16]} 39.
Qb7+ {[%clk 00:08:30]} {[%emt 00:03:30]} Kg6 {[%clk 00:10:01]} {[%emt
00:00:19]} 40. Qb3 {[%clk 00:02:38]} {[%emt 00:06:20]} Qa1+ {[%clk 00:09:16]}
{[%emt 00:01:18]} 41. Qb2 {[%clk 00:01:56]} {[%emt 00:01:10]} Qg1 {[%clk
00:09:01]} {[%emt 00:00:45]} 42. Qa2 {[%clk 00:29:18]} {[%emt 00:03:08]} Qc1+
{[%clk 00:37:41]} {[%emt 00:01:50]} 43. Kb4 {[%clk 00:26:42]} {[%emt 00:03:04]}
Qc6 {[%clk 00:38:09]} {[%emt 00:00:05]} 44. Qa5 {[%clk 00:23:37]} {[%emt
00:03:35]} Qd6+ {[%clk 00:36:34]} {[%emt 00:02:06]} 45. Kc4 {[%clk 00:21:03]}
{[%emt 00:03:03]} Qxh2 {[%clk 00:34:03]} {[%emt 00:03:02]} 46. d5 {[%clk
00:17:43]} {[%emt 00:03:49]} exd5+ {[%clk 00:30:55]} {[%emt 00:03:39]} 47. exd5
{[%clk 00:15:44]} {[%emt 00:02:29]} Qxg2 {[%clk 00:24:47]} {[%emt 00:06:38]} 48.
d6 {[%clk 00:06:06]} {[%emt 00:10:08]} Qe2+ {[%clk 00:09:21]} {[%emt 00:15:55]}
49. Kd4 {[%clk 00:06:18]} {[%emt 00:00:17]} Qb2+ {[%clk 00:05:47]} {[%emt
00:04:04]} 50. Ke4 {[%clk 00:03:07]} {[%emt 00:03:42]} Qe2+ {[%clk 00:06:00]}
{[%emt 00:00:17]} 51. Kd4 {[%clk 00:03:26]} {[%emt 00:00:11]} Qb2+ {[%clk
00:06:26]} {[%emt 00:00:05]} 52. Ke4 {[%clk 00:03:30]} {[%emt 00:00:25]} Qe2+
{[%clk 00:06:50]} {[%emt 00:00:05]} 53. Kd4 {[%clk 00:03:50]} {[%emt 00:00:11]}
1/2-1/2

[Event "The Elitserien 2024/25: round 1 - 3"]
[Site "Scandic Infra City, Kanalvagen 10, Upplands Vasby, Sweden"]
[Date "2024.10.05"]
[Round "2.30"]
[White "Smith, Axel"]
[Black "Wedberg, Tom"]
[Result "1-0"]
[TimeControl "90 minutes for 40 moves + 30 minutes for the rest of the game + 30 seconds per move from move one."]
[WhiteTitle "GM"]
[BlackTitle "GM"]
[WhiteFideId "1707930"]
[BlackFideId "1700073"]
[WhiteElo "2430"]
[BlackElo "2373"]

1. e4 {[%clk 01:29:39]} {[%emt 00:01:20]} e5 {[%clk 01:29:30]} {[%emt
00:01:31]} 2. Nf3 {[%clk 01:30:07]} {[%emt 00:00:02]} Nc6 {[%clk 01:29:53]}
{[%emt 00:00:06]} 3. Bc4 {[%clk 01:30:34]} {[%emt 00:00:03]} Nf6 {[%clk
01:30:09]} {[%emt 00:00:15]} 4. Ng5 {[%clk 01:30:58]} {[%emt 00:00:06]} d5
{[%clk 01:28:40]} {[%emt 00:01:59]} 5. exd5 {[%clk 01:31:25]} {[%emt 00:00:03]}
Na5 {[%clk 01:28:22]} {[%emt 00:00:47]} 6. Bb5+ {[%clk 01:31:53]} {[%emt
00:00:03]} c6 {[%clk 01:28:36]} {[%emt 00:00:16]} 7. dxc6 {[%clk 01:32:19]}
{[%emt 00:00:04]} bxc6 {[%clk 01:29:02]} {[%emt 00:00:04]} 8. Bd3 {[%clk
01:32:45]} {[%emt 00:00:05]} Nd5 {[%clk 01:28:56]} {[%emt 00:00:35]} 9. Nf3
{[%clk 01:32:45]} {[%emt 00:00:29]} Bd6 {[%clk 01:24:02]} {[%emt 00:05:24]} 10.
O-O {[%clk 01:33:07]} {[%emt 00:00:09]} O-O {[%clk 01:22:55]} {[%emt 00:01:36]}
11. Re1 {[%clk 01:33:19]} {[%emt 00:00:19]} f5 {[%clk 01:15:56]} {[%emt
00:07:29]} 12. Nxe5 {[%clk 01:33:22]} {[%emt 00:00:26]} Qf6 {[%clk 01:15:53]}
{[%emt 00:00:32]} 13. Nf3 {[%clk 01:31:20]} {[%emt 00:02:33]} g5 {[%clk
01:14:31]} {[%emt 00:01:51]} 14. g3 {[%clk 01:27:20]} {[%emt 00:04:30]} f4
{[%clk 01:11:48]} {[%emt 00:03:14]} 15. Nc3 {[%clk 01:19:37]} {[%emt 00:08:12]}
fxg3 {[%clk 00:44:21]} {[%emt 00:27:58]} 16. hxg3 {[%clk 01:06:55]} {[%emt
00:13:12]} Nxc3 {[%clk 00:31:32]} {[%emt 00:13:17]} 17. dxc3 {[%clk 01:06:54]}
{[%emt 00:00:31]} Bg4 {[%clk 00:28:02]} {[%emt 00:04:01]} 18. Bxg5 {[%clk
00:50:49]} {[%emt 00:16:35]} Qxf3 {[%clk 00:26:23]} {[%emt 00:02:09]} 19. Qxf3
{[%clk 00:50:30]} {[%emt 00:00:48]} Bxf3 {[%clk 00:26:33]} {[%emt 00:00:21]} 20.
Re6 {[%clk 00:41:56]} {[%emt 00:09:05]} Nb7 {[%clk 00:25:10]} {[%emt 00:01:52]}
21. Rae1 {[%clk 00:33:52]} {[%emt 00:08:34]} Bg4 {[%clk 00:19:59]} {[%emt
00:05:40]} 22. Rh6 {[%clk 00:29:59]} {[%emt 00:04:24]} Bf5 {[%clk 00:19:44]}
{[%emt 00:00:44]} 23. Ba6 {[%clk 00:24:47]} {[%emt 00:05:42]} Bc5 {[%clk
00:11:37]} {[%emt 00:08:37]} 24. Bxb7 {[%clk 00:24:49]} {[%emt 00:00:28]} Rab8
{[%clk 00:11:09]} {[%emt 00:00:57]} 25. Bxc6 {[%clk 00:22:23]} {[%emt
00:02:57]} Rxb2 {[%clk 00:10:57]} {[%emt 00:00:41]} 26. Bd5+ {[%clk 00:12:28]}
{[%emt 00:10:26]} Kg7 {[%clk 00:10:12]} {[%emt 00:01:14]} 27. Rc6 {[%clk
00:11:50]} {[%emt 00:01:08]} Bxf2+ {[%clk 00:09:27]} {[%emt 00:01:16]} 28. Kxf2
{[%clk 00:12:19]} {[%emt 00:00:02]} Be6+ {[%clk 00:09:45]} {[%emt 00:00:10]} 29.
Kg1 {[%clk 00:07:23]} {[%emt 00:05:27]} Bxd5 {[%clk 00:09:59]} {[%emt
00:00:16]} 30. Bh6+ {[%clk 00:07:31]} {[%emt 00:00:22]} Kg8 {[%clk 00:10:15]}
{[%emt 00:00:14]} 31. Rd6 {[%clk 00:07:39]} {[%emt 00:00:22]} Rf5 {[%clk
00:09:57]} {[%emt 00:00:48]} 32. g4 {[%clk 00:07:16]} {[%emt 00:00:53]} 1-0